Cogmind - Beta 16 @@@ ROGUE MODE // 2025.12.28 @ 00:53:36 Player: Red Box Result: Destroyed by G-47 Trooper with Particle Gun Performance ------------- Evolutions (0) 0 Regions Visited (3) 600 Robots Destroyed (45) 225 Value Destroyed (814) 814 Prototype IDs (0) 0 Alien Tech Used (0) 0 Bonus (25) 25 TOTAL SCORE: 1664 Bonus ------- Follower Combat Kills 25 Cogmind --------- Core Integrity 0/250 Matter 192/300 Energy 200/200 System Corruption 0% Temperature Cool (9) Movement Treading (320) Ox2 Location -10/Subcaves Parts ------- > --- POWER (1) -------- Subdweller Power Source > --- PROPULSION (2) --- Light Treads Compact Wheel > --- UTILITY (2) ------ High-capacity Storage Unit Light Armor Plating > --- WEAPON (2) ------- Light Cannon Light Cannon > --- INVENTORY (20) --- Light Treads Subdweller Monowheel Improved Heat Sink Large Storage Unit Seismic Detector Light Armor Plating Light Armor Plating Light Armor Plating EM Pulse Gun Beam Rifle Particle Gun Subdweller Laser Subdweller Machine Gun Subdweller Machine Gun Rocket Launcher Datajack Hammer Proton Bomb Trap Proton Bomb Trap Proton Bomb Trap Peak State ------------ > --- POWER ------------ Subdweller Power Source > --- PROPULSION ------- Light Treads Compact Wheel > --- UTILITY ---------- High-capacity Storage Unit Light Armor Plating > --- WEAPON ----------- Light Cannon Light Cannon > --- INVENTORY -------- Light Treads Improved Heat Sink Large Storage Unit Seismic Detector Light Armor Plating Light Armor Plating Light Armor Plating EM Pulse Gun Beam Rifle Particle Gun Subdweller Machine Gun Rocket Launcher Datajack Hammer Proton Bomb Trap Proton Bomb Trap Proton Bomb Trap [Rating: 10] Favorites ----------- Power Light Ion Engine Engine Light Ion Engine Propulsion Aluminum Leg Treads Light Treads Leg Aluminum Leg Wheel Wheel Utility Light Armor Plating Device Seismic Detector Storage Large Storage Unit Protection Light Armor Plating Weapon Light Cannon Energy Gun EM Pulse Gun Ballistic Cannon Light Cannon Impact Weapon Hammer Special Melee Weapon Datajack Build | -11 -10 -10 -10 ------- Run | Yrd Mat Min Sub Slots Evolved . | . . . . Power . | . . . . Propulsion . | . . . . Utility . | . . . . Weapon . | . . . . Parts Attached 30 | 7 14 3 6 Power 4 | 1 1 1 1 Engine 4 | 1 1 1 1 Core . | . . . . Reactor . | . . . . Propulsion 8 | 2 3 . 3 Treads 3 | . 1 . 2 Leg 3 | 2 1 . . Wheel 2 | . 1 . 1 Hover . | . . . . Flight . | . . . . Utility 11 | 2 5 2 2 Device 3 | 1 2 . . Storage 4 | 1 2 1 . Processor . | . . . . Hackware . | . . . . Protection 4 | . 1 1 2 Artifact . | . . . . Weapon 7 | 2 5 . . Energy Gun 3 | 2 1 . . Energy Cannon . | . . . . Ballistic Gun . | . . . . Ballistic Cannon 2 | . 2 . . Launcher . | . . . . Special Weapon . | . . . . Impact Weapon 1 | . 1 . . Slashing Weapon . | . . . . Piercing Weapon . | . . . . Special Melee Weapon 1 | . 1 . . Unidentified Prototypes . | . . . . Parts Lost 9 | . 4 . 5 Power 2 | . 1 . 1 Propulsion 2 | . . . 2 Utility 3 | . 1 . 2 Weapon 2 | . 2 . . Highest Loss Streak 3 | . 2 . 3 To Critical Strikes . | . . . . Average Backups 12 | 5 11 16 16 Power . | . . . . Propulsion 3 | 3 4 3 2 Utility 4 | . 2 7 6 Weapon 3 | 1 2 4 6 Tool/Special . | . . . . Unused Backups 12 | . 1 . 11 Power . | . . . . Propulsion 1 | . . . 1 Utility 4 | . . . 4 Weapon 7 | . 1 . 6 Tool/Special . | . . . . Average Slot Usage (%) 97 | . 97 100 93 Engine 13 | . 13 14 8 Treads 8 | . 3 14 14 Leg 11 | . 20 . . Wheel 8 | . 3 14 13 Device 5 | . 9 . . Storage 14 | . 14 14 14 Protection 8 | . 3 14 13 Energy Gun 6 | . 12 . . Ballistic Cannon 16 | . 6 28 28 Impact Weapon 3 | . 6 . . Peak Build Rating 10 | 9 9 9 10 Average Rating 8 | 5 7 8 9 On Entrance 6 | . 9 8 9 Avg Prop Armor Cover (%) 8 | . 8 8 8 Naked Turns . | . . . . Heaviest Build 54 | 15 32 52 54 Greatest Support 20 | 20 20 10 16 Greatest Overweight (x) 5 | . 3 5 5 Average Overweight (x) 2 | . 1 4 3 Largest Inventory Capacity 20 | 8 15 20 20 Average Capacity 14 | 7 12 18 20 Most Carried 20 | 7 15 20 20 Average Carried 13 | 5 11 17 19 Final Capacity 20 | 8 15 20 20 Final Carried 20 | 7 15 20 20 Class Distribution -------------------- 77% | Mutant 22% | Commander-Mutant Dominant Class ---------------- Mutant | -10/Materials Commander-Mutant | -10/Mines Mutant | -10/Subcaves Resources | -11 -10 -10 -10 ----------- Run | Yrd Mat Min Sub Matter Collected 742 | 270 243 118 111 Remotely . | . . . . Salvage Created 1314 | 280 809 97 128 Parts 82 | 27 37 9 9 Haulers Intercepted 2 | . 2 . . Recyclers Shooed 1 | . 1 . . Parts Field Recycled . | . . . . Retrieved Matter . | . . . . Parts Self-Destructed 4 | . . . 4 Prevented . | . . . . Parts Restored . | . . . . Kills | -11 -10 -10 -10 ------- Run | Yrd Mat Min Sub Combat Hostiles Destroyed 23 | . 12 5 6 Melee 1 | . 1 . . Guns 5 | . 5 . . Cannons 14 | . 3 5 6 AOE 2 | . 2 . . Classes Destroyed 10 | 3 5 1 1 Worker 3 | 1 1 1 . Tunneler 8 | 8 . . . Hauler 2 | . 2 . . Recycler 5 | 1 4 . . Operator 1 | . 1 . . Watcher 3 | . 3 . . Swarmer 9 | . 6 3 . Grunt 10 | . 6 1 3 Sentry 1 | . . 1 . Subdweller 3 | . . . 3 Best Kill Streak 4 | 3 4 4 2 Combat Bots Only 4 | . 4 3 2 Max Kills in Single Turn 2 | 2 2 1 1 Gunslinging . | . . . . Exploded 2 | . 2 . . Melee 1 | . 1 . . Uniques/NPCs Destroyed . | . . . . Combat | -11 -10 -10 -10 -------- Run | Yrd Mat Min Sub Hostile Shots Fired 113 | . 51 20 42 Missed 29 | . 13 6 10 Hits 84 | . 38 14 32 Projectile 84 | . 38 14 32 AOE 6 | . . . 6 Critical Strikes 2 | . 2 . . Damage Taken 1399 | . 462 149 788 Core 261 | . 62 10 189 Absorbed by Shields . | . . . . Regen/Repaired (Parts) 57 | . 57 . . Core Remaining (%) 100 | 100 . . . Volleys Fired 91 | 15 42 11 23 Largest 2 | 2 2 2 2 Hottest 80 | 80 80 60 60 Shots Fired 182 | 30 84 22 46 Gun 102 | 30 72 . . Cannon 80 | . 12 22 46 Launcher . | . . . . Special . | . . . . Kinetic 80 | . 12 22 46 Thermal . | . . . . Explosive . | . . . . Electromagnetic 102 | 30 72 . . Robot Hit Streak 11 | 5 10 6 11 Robot Miss Streak 6 | 3 6 2 3 Penetration Max . | . . . . Secondary Targets 1 | . 1 . . Max Gunslinging Chain 1 | . 1 . . Shots Hit Robots 130 | 18 66 13 33 Core Hits 56 | 12 27 8 9 Critical Kills 1 | . 1 . . Critical Parts Destroyed 2 | . 2 . . Critical Strikes 7 | . 5 . 2 Blast 4 | . 2 . 2 Smash 3 | . 3 . . Melee Attacks 18 | . 18 . . Impact 18 | . 18 . . Slashing . | . . . . Piercing . | . . . . Sneak Attacks 6 | . 6 . . Combat Hostiles . | . . . . Follow-up Attacks . | . . . . Damage Inflicted 2503 | 303 1351 273 576 Guns 1021 | 259 762 . . Cannons 956 | . 107 273 576 Explosions 181 | 44 137 . . Melee 345 | . 345 . . Ramming . | . . . . Kinetic 956 | . 107 273 576 Thermal 181 | 44 137 . . Explosive . | . . . . Electromagnetic 1021 | 259 762 . . Impact 345 | . 345 . . Slashing . | . . . . Piercing . | . . . . Highest Corruption . | . . . . Average Corruption . | . . . . Corruption Purged . | . . . . Corruption Blocked . | . . . . Overload Shots . | . . . . Overflow Damage 133 | . 133 . . Projectiles 10 | . 10 . . Explosions . | . . . . Melee 123 | . 123 . . Knockbacks 13 | . 4 1 8 Impact 3 | . 3 . . Kinetic 10 | . 1 1 8 Secondary . | . . . . Self-Inflicted Damage . | . . . . Shots . | . . . . Rammed . | . . . . Targets Rammed . | . . . . Kicked . | . . . . Crushed . | . . . . Highest Temperature 168 | 90 168 69 . Average Temperature 54 | 35 68 25 . Received Heat Transfer 342 | . 222 48 72 Siege Activations . | . . . . Martial Activations . | . . . . Shielding Activations . | . . . . Robots Disrupted . | . . . . Combat Hostiles . | . . . . Robots Corrupted 5 | . 5 . . Combat Hostiles 1 | . 1 . . Parts Fried 11 | 2 9 . . Impact Corruptions 8 | . 8 . . Robots Melted . | . . . . Combat Hostiles . | . . . . Parts Melted . | . . . . Heat Transferred 400 | 100 300 . . Parts Sabotaged . | . . . . Parts Stolen . | . . . . Parts Stripped . | . . . . Power Chain Reactions 3 | 1 2 . . Alert | -11 -10 -10 -10 ------- Run | Yrd Mat Min Sub Maximum Alert Level . | . . . . Low Security (%) 100 | 100 100 100 . Level 1 . | . . . . Level 2 . | . . . . Level 3 . | . . . . Level 4 . | . . . . Level 5 . | . . . . High Security . | . . . . Max Security . | . . . . Peak Influence 118 | 15 118 65 . Initial 34 | . 3 34 . Average 22 | 2 32 10 . Influence Increases 864 | 50 553 161 100 Destroy 0b10 Robot/C 420 | . 240 120 60 Destroy 0b10 Robot/NC 110 | 50 55 5 . Destroy Leader 80 | . 50 20 10 Allied During Kill 11 | . . 11 . Trap Triggered on 0b10 10 | . 10 . . Successful Hack 43 | . 38 5 . Select Force Hacks 60 | . 60 . . Disable Machine 15 | . 15 . . Destroy Structure 10 | . 10 . . Lose Combat Pursuer 105 | . 75 . 30 Influence Decreases 844 | 45 468 251 80 Entered New Map 58 | . 2 56 . Time Decay 721 | 45 431 195 50 Lost Part 65 | . 35 . 30 Squads Dispatched 2 | . 2 . . Investigation 2 | . 2 . . Extermination . | . . . . Reinforcement . | . . . . Assault . | . . . . Garrison . | . . . . Intercept . | . . . . Searches Triggered . | . . . . Construction Impeded . | . . . . Haulers Reinforced . | . . . . Active Scanning Responses . | . . . . Cargo Convoy Interrupts . | . . . . Stealth | -11 -10 -10 -10 --------- Run | Yrd Mat Min Sub Distress Signals 1 | . 1 . . Communications Jammed . | . . . . Distress Signals . | . . . . Times Spotted 36 | . 21 7 8 Peak Tracking Total 4 | . 3 3 4 Tactical Retreats 5 | . 4 . 1 Traps | -11 -10 -10 -10 ------- Run | Yrd Mat Min Sub Traps Triggered . | . . . . Indirectly . | . . . . Trap Hack Attempts 32 | . 32 . . Triggered . | . . . . Disarmed . | . . . . Reprogrammed 2 | . 2 . . Reused 1 | . 1 . . Traps Extracted . | . . . . Installed . | . . . . Triggered 1 | . 1 . . Most Traps Carried 3 | . . 3 3 Machines | -11 -10 -10 -10 ---------- Run | Yrd Mat Min Sub Machines Disabled 1 | . 1 . . Max in Single Turn 1 | . 1 . . Machines Repaired . | . . . . Machines Dismantled . | . . . . Machines Sabotaged . | . . . . Overloaded Fab Kills . | . . . . Hacking | -11 -10 -10 -10 --------- Run | Yrd Mat Min Sub Machines Accessed 12 | . 11 1 . Terminals 9 | . 8 1 . Fabricators . | . . . . Repair Stations 1 | . 1 . . Recycling Units 2 | . 2 . . Scanalyzers . | . . . . Garrison Access . | . . . . Total Hacks 47 | . 45 2 . Successful 26 | . 25 1 . Failed 19 | . 19 . . Catastrophic 3 | . 3 . . Database Lockouts 2 | . 1 1 . Manual 30 | . 28 2 . Terminals 32 | . 30 2 . Fabricators . | . . . . Repair Stations 4 | . 4 . . Recycling Units 11 | . 11 . . Scanalyzers . | . . . . Garrison Access . | . . . . Terminal Hacks 7 | . 6 1 . Robot Analysis 3 | . 2 1 . Terminal Index 1 | . 1 . . Locate Traps 2 | . 2 . . Hauler Manifests 1 | . 1 . . Fabricator Hacks . | . . . . Repair Station Hacks 4 | . 4 . . Scan Component 2 | . 2 . . Repair 2 | . 2 . . Recycling Unit Hacks 1 | . 1 . . Retrieve Components 1 | . 1 . . Scanalyzer . | . . . . Garrison Access Hacks . | . . . . Unauthorized Hacks 14 | . 14 . . Terminals 11 | . 11 . . Track 1 | . 1 . . Assimilate 2 | . 2 . . Botnet 2 | . 2 . . Operators 1 | . 1 . . Skim 5 | . 5 . . Fabricators . | . . . . Repair Stations . | . . . . Recycling Units 3 | . 3 . . Reject 1 | . 1 . . Tunnel 2 | . 2 . . Scanalyzers . | . . . . Garrison Access . | . . . . Data Cores Recovered 1 | . 1 . . Used . | . . . . Hacking Detections 12 | . 11 1 . Full Trace Events 1 | . 1 . . Feedback Events . | . . . . Feedback Blocked . | . . . . Robot Schematics Acquired . | . . . . Robots Built . | . . . . Authchips . | . . . . Time . | . . . . Total Robot Build Rating . | . . . . Part Schematics Acquired . | . . . . Parts Built . | . . . . Authchips . | . . . . Time . | . . . . Total Part Build Rating . | . . . . Part Studies Acquired . | . . . . Parts Repaired 2 | . 2 . . Time 70 | . 70 . . Parts Recycled . | . . . . Recycled Matter . | . . . . Retrieved Matter . | . . . . Retrieved Components 2 | . 2 . . Parts Scanalyzed . | . . . . Part Schematics Acquired . | . . . . Parts Damaged . | . . . . Bothacking | -11 -10 -10 -10 ------------ Run | Yrd Mat Min Sub Used RIF Installer . | . . . . Robots Hacked . | . . . . Non-combat . | . . . . Combat . | . . . . Robot Hacks Applied . | . . . . Relay Couplers Released . | . . . . Fabnet Peak Effective % . | . . . . Robots Rewired . | . . . . Allies Hacked . | . . . . Hacks Repelled . | . . . . Allies | -11 -10 -10 -10 -------- Run | Yrd Mat Min Sub Total Allies 4 | . 1 3 . Largest Group 4 | . 1 4 4 Highest-Rated Group 50 | . 10 50 50 Highest-Rated Ally 16 | . 10 16 16 Total Orders 10 | . 3 6 1 STAY 6 | . 2 3 1 FOLLOW 4 | . 1 3 . Ally Attacks 23 | . . 17 6 Total Damage 235 | . . 140 95 Kills 1 | . . 1 . Allies Corrupted . | . . . . Allies Melted . | . . . . Intel | -11 -10 -10 -10 ------- Run | Yrd Mat Min Sub Active Infowar (turns) 1337 | 5 1332 . . Terrain 284 | 5 279 . . Structural 153 | . 153 . . Seismic 900 | . 900 . . Robot Analysis Total 3 | . 2 1 . Derelict Logs Recovered 3 | . . 2 1 Drone Launches . | . . . . Drone Recoveries . | . . . . Exploration | -11 -10 -10 -10 ------------- Run | Yrd Mat Min Sub Turns Passed 3843 | 223 1946 1240 434 Spaces Moved 2282 | 99 1146 825 212 Core 5 | 5 . . . Treads . | . . . . Legs 911 | 94 817 . . Wheels 1366 | . 329 825 212 Hover . | . . . . Flight . | . . . . Fastest Speed 50 | 50 120 125 140 Average Speed 137 | 116 135 141 144 Slowest Speed 190 | 120 190 155 155 Overloaded Moves . | . . . . Propulsion Burnouts . | . . . . Robots Hopped . | . . . . Potential Cave-ins . | . . . . Cave-ins Triggered . | . . . . Exploration Rate (%) 56 | 5 100 100 20 Regions Visited 3 Branch Regions 2 Pre-discovered Areas 6 | . 4 1 1 Known Exits Taken 1 | . . 1 . Unknown Exits Taken 2 | 1 1 . . Scrap Searched 1 | . . 1 . Spaces Dug 4 | . 4 . . Terrain Destroyed 14 | 4 10 . . Melee 4 | . 4 . . Projectile . | . . . . AOE 10 | 4 6 . . Terrain Rammed . | . . . . Walls Destroyed . | . . . . Machines Disabled . | . . . . Actions | -11 -10 -10 -10 --------- Run | Yrd Mat Min Sub Total 2763 | 173 1425 873 292 Wait 263 | 46 143 27 47 Move 2279 | 98 1145 824 212 Hop . | . . . . Pick Up 34 | 7 17 6 4 Fast Attach 11 | 7 3 . 1 Attach 10 | . 6 . 4 Detach . | . . . . Swap 15 | . 11 3 1 Drop 10 | . 8 2 . Fire 91 | 15 42 11 23 Melee 18 | . 18 . . Ram . | . . . . Kick . | . . . . Crush . | . . . . Escape Stasis . | . . . . Rewire . | . . . . Trap 32 | . 32 . . Miscellaneous . | . . . . Route ------- -11/Scrapyard -10/Materials (discovered 5 exits: *Mat x3 / *Min / *Sub) -10/Mines (discovered 3 exits: *Mat x2 / *Sub) -10/Subcaves (discovered 1 exit: [*Scr]) History --------- Turn | Location | Event 8 | -11/Scrapyard | Discovered new exit (range 14) 224 | -11/Scrapyard | Entered Materials 316 | -10/Materials | Build established: Mutant 424 | -10/Materials | Discovered new exit (range 4) 436 | -10/Materials | Discovered new exit (range 15) 646 | -10/Materials | Identified exit to Materials 686 | -10/Materials | Learned location of Mines (-10) 715 | -10/Materials | Learned 2 Storage zone layouts 742 | -10/Materials | Learned Storage trap positions 743 | -10/Materials | Learned location of Recycling (-9) 753 | -10/Materials | Identified exit to Subcaves 772 | -10/Materials | Learned 4 Recycling zone layouts 936 | -10/Materials | Central database locked down 1498 | -10/Materials | Repaired Corrupted Particle Gun 1836 | -10/Materials | Repaired Lgt. Cannon 2170 | -10/Materials | Entered Mines 2170 | -10/Mines | Accompanied by 1 ally 2177 | -10/Mines | Discovered exit to Materials (range 10) 2212 | -10/Mines | Learned 2 Materials zone layouts 2466 | -10/Mines | Central database locked down 2518 | -10/Mines | Received a Rocket Launcher from a helpful Derelict 2598 | -10/Mines | Assisted by bots powering up and referring to "LRC-V3" 2642 | -10/Mines | Found a hidden stash of uninstalled traps 2714 | -10/Mines | Learned location of Mines (-8) 2741 | -10/Mines | Joined a pair of Derelicts in attacking an 0b10 outpost 2893 | -10/Mines | Build established: Commander-Mutant 3388 | -10/Mines | Discovered exit to Subcaves (range 10) 3410 | -10/Mines | Entered Subcaves 3410 | -10/Subcaves | Accompanied by 4 allies 3411 | -10/Subcaves | Approached by a straggling Scientist 3478 | -10/Subcaves | Core integrity fell below 50% 3480 | -10/Subcaves | Core integrity fell below 20% 3510 | -10/Subcaves | Lost 3 allies 3550 | -10/Subcaves | Curiously followed by a Cobbler waking with a query about "LVR3C" 3599 | -10/Subcaves | Ambushed by Subdwellers from Twisted Machinery 3663 | -10/Subcaves | Lost 3 parts (2n1u) 3764 | -10/Subcaves | Build established: Mutant 3844 | -10/Subcaves | Destroyed by G-47 Trooper with Particle Gun Last Messages --------------- 03640_ 2J-IB8(O) collects matter. 03642_ 2J-IB8(O) puts together Sub. Laser. 03643_ 2J-IB8(O) collects matter. 03646_ Subatomizers dissect the Sub. Optics. 03647_ 2J-IB8(O) collects matter. 03648_ Acquired Sub. Power Source. 03653_ Acquired Sub. Machine Gun. 03656_ Acquired Sub. Monowheel. 03662_ 2J-IB8(O) collects matter. 03662_ Acquired 6 matter. 03663_ Acquired 8 matter. 03665_ Acquired 3 matter. 03665_ 2J-IB8(O) collects matter. 03668_ Acquired 4 matter. 03671_ Acquired 2 matter. 03722_ 2J-IB8(O) puts together Sub. Laser. 03722_ 2J-IB8(O) collects matter. 03737_ Acquired Sub. Laser. 03838_ G-47 Trooper knocked back. 03841_ G-34 Mercenary destroyed. Map ----- +----------------------------------------------------+ | ?????????????????????????????????????????????????? | | ?????????????????????????????????????????????????? | | ?????????????????????????????????????????????????? | | ?????????????????????????????????????????????????? | | ?????????????????????????????????????????????????? | | ?????????????????????????????????????????????????? | | ?????????????????????????????????????????????????? | | ?????????????????????????????????????????????????? | | ?????????????????????????????????????????????????? | | ?????????????????????????????????????????????????? | | ?????????????????????????????????????????????????? | | ?????????????????????????????#???????????????????? | | ????????????????????????????# ???????????????????? | | ???????????????????????????? ???????????????????? | | ???????????????????????????? ???????????????????? | | ????????????????????????????%##??????????????????? | | ???????????????????????????? ##?????????????????? | | ???????????????????????????? #?????????????????? | | ???????????????????????????# ####??????????????? | | ??????????????????????????? % ##?????????????? | | ?????????????????????#?????# #?????????????? | | ?????????? ?????## ?#### # #?????????? ???? | | ????????? ### ## #????????? ?? | | ????????? % g% #???????? ?? | | ??????????????# % O% # #######?? ?? | | ???????????????# % #@ O ## #? ?? | | ???????????????####### #### ## ?? | | ?????????????????????# ????# ??? | | ????????????????????? ????# #????### | | ???????????????????? ?????# ## ###### # | | ??????????????????? ?????##### ## | | ??????????????????# ??????????# | | ??????????????????# ??????????## | ## | | ??????????????????##????????????#### ## | | ?????????????????????????????????### # | | ??????????????????????????????#### ##### ## | | ??????????????????????????????# #???## ##? | | ?????????????????????????##???# ###### ##? | | ????????????????????????## ??# ## ## | | ?????????????????????#### ?# ### # | | ????????????????????## ### ### | | ????????????????????# ## ## | | ?????????????????????# | | ??????????????????????### | | ????????????????????????## ## ## ### ### | | ?????????????????????????###### ########?## ##?## | | ??????????????????????????????###?????????####???# | | ?????????????????????????????????????????????????? | | ?????????????????????????????????????????????????? | | ?????????????????????????????????????????????????? | +----------------------------------------------------+ Best States ------------- Heat Dissipation 25 Energy Generation 15 Energy Capacity 250 Matter Stores 300 Matter Capacity 300 Sight Range 16 Terrain Scan Range 16 Terrain Scan Density 10 Armor Coverage 150 Evasion (%) 55 Recoil Reduction 2 Item Schematics ----------------- None Robot Schematics ------------------ None Fabricated ------------ Nothing Repaired ---------- Particle Gun | 60% | -10/Materials | Corrupted Lgt. Cannon | 77% | -10/Materials Studied --------- None Alien Tech Used ----------------- None Achievements -------------- None Challenges ------------ None Game ------ Seed DispersalBattleCannon Manual? 0 Play Time 00:25:20 Cumulative 907.3 hours Start 2025.12.28 @ 00:15:32 End 2025.12.28 @ 00:53:36 Sessions 1 Manual Loads 0 Difficulty Rogue Special Mode None Game No. 564 Rogue 564 Adventurer 0 Explorer 0 Win Type - Total 3 Types 3/0/0/0/0/0/0/0/0/0 Lore% 81 Gallery% 74 Achievement% 59 Wizard Run 0 Options --------- Layout 1 ASCII 0 Keyboard 0 Movement Mouse Keybinds 0 Fullscreen 1 Font 20/SmallcapsGlow Map View 54x42 Zoom Use 0% Tactical HUD 1 Map Filters NONE Filters NONE Steam 1 RUN: e8c0486f-b4b1-40c6-9c27-bba78ae0ea1d